fUSD/lending_fUSD_20250401
["ID","MTS","AMOUNT","RATE_DAILY","PERIOD"]
[356988476,1743530310509,1779.924,0.000147,2]
[356988477,1743530340812,-166.66666668,0.00014899,2]
[356988478,1743530340834,-71.32641532,0.000149,2]
[356988479,1743530404616,-150.0,0.00014899,2]
[356988480,1743530406376,-150.0,0.00014899,2]
[356988481,1743530406402,-76.137561,0.00014899,2]
[356988482,1743530413161,-155.21812665,0.00014899,2]
[356988483,1743530418385,435.35489824,0.00014656,2]
[356988484,1743530430384,-150.0,0.00014899,2]
[356988485,1743530464018,-118.64431235,0.00014899,2]
[356988486,1743530464043,-31.35568765,0.00014899,2]
[356988487,1743530522045,-300.0,0.00014899,2]
[356988488,1743530525249,151.0,0.00034241,30]
[356988489,1743530531999,151.0,0.00034241,30]
[356988490,1743530533258,156.587,0.00034241,30]
[356988491,1743530533904,162.380719,0.00034241,30]
[356988492,1743530534534,168.3888056,0.00034241,30]
[356988493,1743530535147,174.61919141,0.00034241,30]
[356988494,1743530535792,181.08010149,0.00034241,30]
[356988495,1743530536410,187.78006525,0.00034241,30]
[356988496,1743530537030,194.72792766,0.00034241,30]
[356988497,1743530537670,194.72792766,0.00034241,30]
[356988498,1743530555252,174.21974,0.0001735,18]
[356988499,1743530583602,-150.0,0.00014899,2]
[356988500,1743530623543,679.8,0.00026877,120]
[356988501,1743530683932,168.06,0.00013699,2]
[356988504,1743530738500,-300.0,0.00014898,2]
[356988505,1743530738524,-391.5038,0.00014899,2]
[356988506,1743530762685,825.0,0.00032,120]
[356988507,1743530823898,174.21975,0.00015,13]
[356988508,1743530869438,154.33291772,0.00014799,2]
[356988509,1743530899734,435.35489824,0.00014616,2]
[356988510,1743530972935,-350.0,0.00016389,12]
[356988511,1743530972959,-350.0,0.00016389,12]
[356988512,1743530972986,-150.0,0.00017223,7]
[356988513,1743530973015,-1500.0,0.00021918,20]
[356988514,1743530973039,-193.0,0.000253,10]
[356988515,1743530986085,-108.4962,0.00014899,2]
[356988516,1743530986109,-421.5038,0.00014899,2]
[356988517,1743530997376,150.0,0.000148,2]
[356988525,1743531032192,-300.0,0.00014898,2]
[356988526,1743531032202,-150.0,0.00014899,2]
[356988527,1743531032220,-78.4962,0.00014899,2]
[356988528,1743531032230,-85.43274622,0.00014899,2]
[356988529,1743531032242,-414.56725378,0.00014899,2]
[356988530,1743531032252,-447.26088678,0.00014899,2]
[356988531,1743531032264,-52.73911322,0.00014899,2]
[356988532,1743531032274,-500.0,0.00014899,2]
[356988533,1743531032283,-500.0,0.00014899,2]
[356988534,1743531032293,-468.74417755,0.00014899,2]
[356988535,1743531032302,-355.44186511,0.00014899,2]
[356988536,1743531032312,-150.0,0.00014899,2]
[356988537,1743531032321,-312.3198,0.000149,2]
[356988538,1743531032331,-1245.1968,0.000149,2]
[356988539,1743531032341,-171.53127833,0.000149,2]
[356988540,1743531032352,-426.91581642,0.000149,2]
[356988541,1743531032365,-202.3685,0.000149,2]
[356988542,1743531032374,-2418.1908,0.000149,2]
[356988543,1743531032384,-1877.41640587,0.000149,2]
[356988544,1743531032395,-1776.5946,0.000149,2]
[356988545,1743531032407,-6239.74589413,0.000149,2]
[356988546,1743531032417,-722.7189468,0.000149,2]
[356988547,1743531032429,-2199.3623311,0.000149,2]
[356988548,1743531032443,-373.74110185,0.000149,2]
[356988549,1743531032455,-872.32,0.000149,2]
[356988550,1743531032519,-609.18432025,0.000149,2]
[356988551,1743531032529,-3527.0344,0.000149,2]
[356988552,1743531032538,-358.90741975,0.000149,2]
[356988553,1743531032554,-252.2,0.000149,2]
[356988554,1743531032565,-25057.92888025,0.000149,2]
[356988556,1743531032575,-1756.47111975,0.000149,2]
[356988558,1743531032587,-517.34955758,0.000149,2]
[356988560,1743531032596,-29.35875733,0.000149,2]
[356988709,1743531038158,-517.55088769,0.000149,2]
[356988710,1743531038190,-0.1331207,0.000149,2]
[356988711,1743531038210,-956.84313428,0.000149,2]
[356988712,1743531038221,-4853.0394,0.000149,2]
[356988713,1743531038231,-216.72785146,0.000149,2]
[356988714,1743531038241,-161.39548801,0.000149,2]
[356988715,1743531038251,-5610.7049,0.000149,2]
[356988716,1743531038260,-160.15103961,0.00014973,2]
[356988717,1743531038269,-155.48102607,0.00014973,2]
[356988718,1743531038279,-500.0,0.00014973,2]
[356988719,1743531038288,-237.81339502,0.00014973,2]
[356988720,1743531038298,-1316.62311002,0.0001499,2]
[356988721,1743531038307,-182.50891526,0.0001499,2]
[356988722,1743531038317,-465.10010758,0.00014999,2]
[356988723,1743531038327,-18695.9989366,0.00014999,2]
[356988724,1743531038338,-961.8123939,0.00014999,2]
[356988725,1743531038348,-2403.78704119,0.00014999,2]
[356988726,1743531038367,-13851.71845767,0.00014999,2]
[356988727,1743531038378,-1606.12710976,0.00014999,2]
[356988728,1743531038407,-940.31915199,0.00014999,2]
[356988754,1743531040324,-18065.88690889,0.00014999,2]
[356988755,1743531040333,-1455839.93195941,0.00015,2]
[356988756,1743531042228,-327.64335458,0.00015,2]
[356988763,1743531044428,-673.42877416,0.00015,2]
[356988764,1743531044444,-1883.59137584,0.00015,2]
[356988786,1743531046147,-8533.53300001,0.00015,2]
[356988789,1743531046412,-4418.76905243,0.00015,2]
[356988799,1743531046702,-628.05327862,0.00015,2]
[356988804,1743531075653,1011.93527605,0.00014999,5]
[356988805,1743531092134,300.0,0.000148,5]
[356988806,1743531094284,700.0,0.000149,5]
[356988807,1743531124573,151.0,0.00034237,30]
[356988808,1743531125199,156.587,0.00034237,30]
[356988809,1743531125810,156.587,0.00034237,30]
[356988810,1743531135520,151.0,0.00034237,30]
[356988811,1743531136176,156.587,0.00034237,30]
[356988812,1743531136809,162.380719,0.00034237,30]
[356988813,1743531137426,168.3888056,0.00034237,30]
[356988814,1743531138053,174.61919141,0.00034237,30]
[356988815,1743531138673,181.08010149,0.00034237,30]
[356988816,1743531139918,187.78006525,0.00034237,30]
[356988817,1743531140568,187.78006525,0.00034237,30]
[356988819,1743531229509,175.14,0.00014335,2]
[356988820,1743531345924,1000.0,0.00034236,30]
[356988821,1743531346521,1000.0,0.00034236,30]
[356988822,1743531347235,719.1530383,0.00034236,30]
[356988823,1743531390013,458.13618277,0.00014647,2]
[356988824,1743531510467,1925.339,0.000147,2]
[356988825,1743531510574,198.481,0.000147,2]
[356988826,1743531553016,-150.0,0.00016993,7]
[356988827,1743531553049,-1100.0,0.000199,7]
[356988828,1743531563287,-1011.93527605,0.00019999,5]
[356988829,1743531567987,-7852.82793431,0.0002,4]
[356988830,1743531568014,-685.23678964,0.0002,4]
[356988832,1743531599829,-292.9517,0.00014899,2]
[356988833,1743531630798,-2116.85,0.000149,2]
[356988834,1743531630825,-4788.79824178,0.000149,2]
[356988835,1743531630851,-1782.0108,0.000149,2]
[356988836,1743531630880,-417.00942923,0.000149,2]
[356988837,1743531630907,-26191.8974,0.000149,2]
[356988838,1743531630935,-3481.31997495,0.000149,2]
[356988839,1743531630961,-7342.7873,0.000149,2]
[356988840,1743531630989,-150.0,0.00014936,2]
[356988841,1743531631016,-500.0,0.00014973,2]
[356988842,1743531631043,-500.0,0.00014973,2]
[356988843,1743531631070,-191.10977123,0.00014999,2]
[356988844,1743531631095,-261.71576279,0.00014999,2]
[356988845,1743531631122,-333.82413229,0.00014999,2]
[356988846,1743531631148,-150.0,0.00014999,2]
[356988847,1743531631175,-21792.67718773,0.00015,2]
[356988848,1743531737140,384.26,0.00025187,120]
[356988849,1743531847877,168.06,0.00013699,2]
[356988850,1743531920760,554.91521212,9e-05,2]
[356988851,1743531928949,3854.20774571,0.00011,2]
[356988852,1743531937454,6189.39514686,8e-05,2]
[356988853,1743531956082,1405.47448602,6.94e-05,2]
[356988854,1743531963453,12544.67563467,8e-05,2]
[356988855,1743531967726,859.75716706,8e-05,2]
[356988858,1743532052637,200.0,0.000144,5]
[356988859,1743532054753,500.0,0.000145,5]
[356988861,1743532056900,800.0,0.000146,5]
[356988862,1743532059014,1100.0,0.000147,5]
[356988863,1743532061135,1300.0,0.000148,5]
[356988864,1743532063274,200.0,0.000149,5]
[356988865,1743532065770,310.15476215,0.00034223,120]
[356988867,1743532079042,-4315.18794955,0.000149,2]
[356988868,1743532079068,-684.81205045,0.000149,2]
[356988873,1743532101783,-4508.17821561,0.000149,2]
[356988874,1743532103920,350.5867958,0.000149,2]
[356988885,1743532182735,-4060.57391882,0.000149,2]
[356988886,1743532183041,-150.0,0.00014907,2]
[356988887,1743532183070,-1971.85438354,0.00014914,2]
[356988891,1743532196346,1694.08,0.00014819,2]
[356988901,1743532232385,-294.33656805,0.00014914,2]
[356988902,1743532232398,-475.22000005,0.00014914,2]
[356988903,1743532232410,-2451.57931435,0.00014914,2]
[356988904,1743532232419,-150.0,0.00014921,2]
[356988905,1743532232428,-2324.16230395,0.00014928,2]
[356988906,1743532232512,-2868.82796204,0.00014928,2]
[356988907,1743532232522,-523.32079111,0.00014943,2]
[356988908,1743532232533,-452.95011032,0.00014943,2]
[356988909,1743532232657,-1247.11792128,0.00014943,2]
[356988910,1743532232714,-1351.97342967,0.00014943,2]
[356988911,1743532232730,-1617.62801361,0.00014943,2]
[356988912,1743532232743,-24.97751125,0.00014957,2]
[356988913,1743532232754,-1208.7485247,0.00014957,2]
[356988914,1743532232765,-752.76793986,0.00014957,2]
[356988931,1743532238711,-233.72453054,0.000149,2]
[356988933,1743532238722,-2520.13707947,0.00014957,2]
[356988936,1743532238735,-686.35921071,0.00014957,2]
[356988937,1743532238748,-5192.99026599,0.00014971,2]
[356988939,1743532238757,-5192.99026599,0.00014985,2]
[356988940,1743532238767,-2114.0,0.00014986,2]
[356988941,1743532238777,-150.99,0.00014986,2]
[356988942,1743532238787,-299.99,0.00014999,2]
[356988943,1743532238797,-2797.06,0.00014999,2]
[356988944,1743532238806,-150.0,0.00014999,2]
[356988945,1743532238818,-666.0,0.00014999,2]
[356988946,1743532238828,-5192.99026599,0.00015,2]
[356988947,1743532238838,-183162.55570769,0.00015,2]
[356988976,1743532240439,-51302.39887494,0.00015,2]
[356988982,1743532240495,-10866.50860339,0.00015,2]
[356988983,1743532240703,-9768.37252227,0.00015,2]
[356988984,1743532240715,-901.4202829,0.00015,2]
[356988985,1743532240727,-16787.11573237,0.00015,2]
[356989028,1743532243529,-2010.50850003,0.00015,2]
[356989029,1743532243541,-285.09158628,0.00015,2]
[356989030,1743532243590,-9845.84565711,0.00015,2]
[356989039,1743532244504,-266428.09306652,0.00015,2]
[356989079,1743532246502,-6008.8843838,0.00015,2]
[356989082,1743532246720,-6321.73631752,0.00015,2]
[356989094,1743532372222,175.14,0.00013269,2]
[356989103,1743533038536,168.06,0.00013699,2]
[356989104,1743533156307,-150.0,0.0001592,7]
[356989105,1743533156347,-1517.44114078,0.0002361,7]
[356989106,1743533156371,-151.0,0.000248,7]
[356989107,1743533156394,-151.0,0.000248,7]
[356989108,1743533156420,-151.0,0.000248,7]
[356989109,1743533156442,-151.0,0.000248,7]
[356989110,1743533156465,-151.0,0.000248,7]
[356989111,1743533156488,-151.0,0.000248,7]
[356989112,1743533156513,-151.0,0.000248,7]
[356989113,1743533156537,-151.0,0.000248,7]
[356989114,1743533156559,-151.0,0.000248,7]
[356989115,1743533156582,-153.847183,0.000248,7]
[356989116,1743533156605,-151.0,0.000248,7]
[356989117,1743533156628,-151.0,0.000248,7]
[356989118,1743533156652,-151.0,0.000248,7]
[356989119,1743533156676,-151.0,0.000248,7]
[356989120,1743533156699,-151.0,0.000248,7]
[356989121,1743533156723,-151.0,0.000248,7]
[356989122,1743533156746,-151.0,0.000248,7]
[356989123,1743533156768,-151.0,0.000248,7]
[356989124,1743533156793,-151.0,0.000248,7]
[356989125,1743533156815,-151.0,0.000248,7]
[356989126,1743533156838,-151.0,0.000248,7]
[356989127,1743533157011,-151.0,0.000248,7]
[356989128,1743533157040,-153.271131,0.000248,7]
[356989129,1743533157064,-152.06472,0.000248,7]
[356989130,1743533157087,-151.0,0.000248,7]
[356989131,1743533157110,-151.0,0.000248,7]
[356989132,1743533157133,-151.0,0.000248,7]
[356989133,1743533157156,-152.371732,0.000248,7]
[356989134,1743533157180,-161.727988,0.000248,7]
[356989135,1743533157203,-170.997903,0.000248,7]
[356989136,1743533157226,-151.0,0.000248,7]
[356989137,1743533157248,-153.883508,0.000248,7]
[356989138,1743533157270,-151.0,0.000248,7]
[356989139,1743533157294,-244.761958,0.000248,7]
[356989140,1743533157316,-244.761958,0.000248,7]
[356989141,1743533157339,-151.0,0.000248,7]
[356989142,1743533157362,-240.36226,0.000248,7]
[356989143,1743533157384,-151.0,0.000248,7]
[356989144,1743533157407,-151.0,0.000248,7]
[356989145,1743533157428,-213.853682,0.000248,7]
[356989146,1743533157452,-151.0,0.000248,7]
[356989147,1743533157476,-151.0,0.000248,7]
[356989148,1743533157499,-152.557202,0.000248,7]
[356989149,1743533157522,-151.0,0.000248,7]
[356989150,1743533157544,-225.87358897,0.000248,7]
[356989151,1743533157566,-151.0,0.000248,7]
[356989152,1743533157588,-151.0,0.000248,7]
[356989153,1743533157611,-151.0,0.000248,7]
[356989154,1743533157634,-151.0,0.000248,7]
[356989155,1743533157658,-199.892879,0.000248,7]
[356989156,1743533157680,-199.892879,0.000248,7]
[356989157,1743533157704,-151.0,0.000248,7]
[356989158,1743533157727,-151.0,0.000248,7]
[356989159,1743533157758,-151.807273,0.000248,7]
[356989160,1743533157787,-151.0,0.000248,7]
[356989161,1743533157811,-151.0,0.000248,7]
[356989162,1743533157834,-151.0,0.000248,7]
[356989163,1743533157858,-151.0,0.000248,7]
[356989164,1743533157882,-151.0,0.000248,7]
[356989165,1743533157905,-151.0,0.000248,7]
[356989166,1743533157929,-151.0,0.000248,7]
[356989167,1743533157954,-151.0,0.000248,7]
[356989168,1743533157981,-151.0,0.00025384,7]
[356989169,1743533158006,-196.401411,0.00025384,7]
[356989170,1743533158034,-254.134941,0.00025384,7]
[356989171,1743533158059,-196.401411,0.00025384,7]
[356989172,1743533158083,-151.0,0.00025384,7]
[356989173,1743533158108,-151.0,0.00025384,7]
[356989174,1743533158132,-151.0,0.00025384,7]
[356989175,1743533158156,-151.0,0.00025384,7]
[356989176,1743533158182,-151.0,0.00025384,7]
[356989177,1743533158206,-1796.948968,0.00025384,7]
[356989178,1743533158232,-1796.948968,0.00025384,7]
[356989179,1743533158256,-151.0,0.00025452,7]
[356989180,1743533158282,-152.639876,0.00027397,7]
[356989181,1743533158306,-151.0,0.00027397,7]
[356989182,1743533158330,-151.0,0.00027397,7]
[356989183,1743533158358,-1540.271,0.00028062,18]
[356989184,1743533158387,-198.48152401,0.00028062,18]
[356989185,1743533158448,151.0,0.00025452,7]
[356989186,1743533158495,151.0,0.00025384,7]
[356989187,1743533226997,237.026272,0.00014802,2]
[356989188,1743533383260,-150.0,0.00014877,2]
[356989189,1743533383288,-150.0,0.00014888,2]
[356989190,1743533383317,-150.0,0.00014899,2]
[356989191,1743533383345,-160.0,0.00014899,2]
[356989192,1743533383376,-157.7499,0.000149,2]
[356989193,1743533383405,-1599.4876,0.000149,2]
[356989194,1743533383434,-368.7964,0.000149,2]
[356989195,1743533383462,-245.8407,0.000149,2]
[356989196,1743533383490,-357.43665366,0.000149,2]
[356989197,1743533383519,-268.3202,0.000149,2]
[356989198,1743533383547,-2570.7295,0.000149,2]
[356989199,1743533383576,-155.8163537,0.000149,2]
[356989200,1743533383607,-1931.62855755,0.000149,2]
[356989201,1743533383802,-297.69272877,0.000149,2]
[356989202,1743533383867,-8265.80586491,0.000149,2]
[356989203,1743533408539,-377.45780863,0.000149,2]
[356989206,1743533431537,-337.25865694,0.000149,2]
[356989207,1743533431547,-77.10663612,0.000149,2]
[356989208,1743533431590,-407.0,0.000149,2]
[356989209,1743533431602,-1362.03657173,0.000149,2]
[356989210,1743533431697,-289.89542101,0.000149,2]
[356989211,1743533431708,-571.01065036,0.000149,2]
[356989212,1743533431718,-500.0,0.00014973,2]
[356989213,1743533431728,-500.0,0.00014973,2]
[356989214,1743533431737,-151.90225677,0.00014973,2]
[356989215,1743533431746,-116.41477626,0.00014973,2]
[356989216,1743533431757,-163.06664101,0.00014973,2]
[356989217,1743533431766,-160.08132431,0.00014973,2]
[356989218,1743533431776,-377.2182405,0.00014999,2]
[356989219,1743533431785,-13.84586531,0.00014999,2]
[356989220,1743533431797,-272.34436738,0.00014999,2]
[356989221,1743533431806,-952.0,0.00015,2]
[356989222,1743533431816,-3667.27870917,0.00015,2]
[356989223,1743533431828,-447.46047696,0.00015,2]
[356989224,1743533431988,-31194.7925317,0.00015,2]
[356989225,1743533431999,-2691.29338967,0.00015,2]
[356989253,1743533437470,-468.40396298,0.00015,2]
[356989254,1743533437481,-1942.4,0.00015,2]
[356989255,1743533437523,-252100.00654761,0.00015,2]
[356989256,1743533437534,-6367.60537862,0.00015,2]
[356989257,1743533437546,-16696.9305309,0.00015,2]
[356989258,1743533437631,-5108.28043076,0.00015,2]
[356989259,1743533437643,-617.98119496,0.00015,2]
[356989260,1743533437685,-5711.91562,0.00015,2]
[356989261,1743533437742,-822.49017547,0.00015,2]
[356989283,1743533439943,-863.0,0.00015,2]
[356989284,1743533439952,-1706.7633961,0.00015,2]
[356989285,1743533439965,-2314.55750502,0.00015,2]
[356989286,1743533439978,-253.1918,0.00015,2]
[356989287,1743533439996,-8605.69970125,0.00015,2]
[356989378,1743533442583,-1961.27164231,0.00015,2]
[356989379,1743533443869,-155.81635368,0.000149,2]
[356989380,1743533443880,-4384.18364632,0.00015,2]
[356989384,1743533445473,-777.0,0.00015,2]
[356989385,1743533445482,-7753.52700002,0.00015,2]
[356989386,1743533445661,-364318.40823135,0.00015,2]
[356989390,1743533446006,-16759.05304087,0.00015,2]
[356989393,1743533446022,-1810.90171841,0.00015,2]
[356989395,1743533446032,-3523.68442852,0.00015,2]
[356989396,1743533446044,-4539.8266924,0.00015,2]
[356989401,1743533487191,151.0,0.00014,2]
[356989406,1743533615292,175.14,0.0001261,2]
[356989407,1743533643847,1641.54,0.00013905,2]
[356989418,1743533715929,2300.1155,0.000148,2]
[356989422,1743533760646,-265.300646,0.000248,7]
[356989423,1743533760670,-151.0,0.000248,7]
[356989424,1743533760693,-151.0,0.000248,7]
[356989425,1743533760715,-158.170297,0.000248,7]
[356989426,1743533760739,-274.816126,0.000248,7]
[356989427,1743533760763,-220.285762,0.000248,7]
[356989428,1743533760787,-220.285762,0.000248,7]
[356989429,1743533760810,-160.100424,0.000248,7]
[356989430,1743533760834,-160.100424,0.000248,7]
[356989431,1743533760858,-151.0,0.000248,7]
[356989432,1743533760881,-151.0,0.000248,7]
[356989433,1743533760905,-151.0,0.000248,7]
[356989434,1743533760929,-151.0,0.000248,7]
[356989435,1743533760953,-151.0,0.000248,7]
[356989436,1743533760977,-151.0,0.000248,7]
[356989437,1743533761000,-151.0,0.000248,7]
[356989438,1743533761024,-151.0,0.000248,7]
[356989439,1743533761048,-188.745708,0.000248,7]
[356989440,1743533761072,-151.0,0.000248,7]
[356989441,1743533761100,-1617.254072,0.000248,7]
[356989442,1743533761124,-151.0,0.000248,7]
[356989443,1743533761148,-194.464936,0.000248,7]
[356989444,1743533761171,-151.0,0.000248,7]
[356989445,1743533761195,-151.0,0.000248,7]
[356989446,1743533761221,-179.903591,0.000248,7]
[356989447,1743533761244,-151.0,0.000248,7]
[356989448,1743533761269,-179.903591,0.000248,7]
[356989449,1743533761440,-283.20128,0.000248,7]
[356989450,1743533761467,-151.0,0.000248,7]
[356989451,1743533761494,-151.0,0.000248,7]
[356989452,1743533761518,-158.539199,0.000248,7]
[356989453,1743533761543,-151.0,0.000248,7]
[356989454,1743533761566,-205.795243,0.000248,7]
[356989455,1743533761590,-176.76127,0.000248,7]
[356989456,1743533761613,-151.0,0.000249,7]
[356989457,1743533761637,-151.0,0.000249,7]
[356989458,1743533761660,-151.0,0.000249,7]
[356989459,1743533761683,-151.0,0.000249,7]
[356989460,1743533761706,-253.66988,0.000249,7]
[356989461,1743533761729,-151.0,0.000249,7]
[356989462,1743533761757,-151.0,0.000249,7]
[356989463,1743533761782,-1617.254072,0.000249,7]
[356989464,1743533761807,-151.0,0.000249,7]
[356989465,1743533761831,-151.0,0.000249,7]
[356989466,1743533761855,-151.0,0.000249,7]
[356989467,1743533761880,-179.903591,0.000249,7]
[356989468,1743533761904,-151.0,0.000249,7]
[356989469,1743533761929,-179.903591,0.000249,7]
[356989470,1743533761956,-151.0,0.00027397,7]
[356989471,1743533761980,-151.0,0.00028062,7]
[356989472,1743533762005,-151.0,0.00028062,7]
[356989473,1743533762031,-151.0,0.00028062,7]
[356989474,1743533762058,-176.76127,0.00028062,7]
[356989475,1743533762083,-151.0,0.00028081,7]
[356989476,1743533762107,-151.0,0.00028081,7]
[356989477,1743533762131,-151.0,0.00028081,7]
[356989478,1743533762156,-151.0,0.00028081,7]
[356989479,1743533762182,-151.0,0.00028081,7]
[356989480,1743533762211,-151.0,0.00028081,7]
[356989481,1743533762236,-151.0,0.00028081,7]
[356989482,1743533762265,-151.0,0.00028081,7]
[356989483,1743533762289,-152.550491,0.00028402,7]
[356989484,1743533762456,176.76127,0.000248,7]
[356989485,1743533762523,176.76127,0.00028062,7]
[356989486,1743533762611,151.0,0.000248,7]
[356989487,1743533762661,151.0,0.00028062,7]
[356989490,1743534096865,-150.0,0.00014899,2]
[356989491,1743534096888,-24.05445656,0.000149,2]
[356989493,1743534122828,-174.0,0.00014899,2]
[356989496,1743534140732,-125.94554344,0.000149,2]
[356989497,1743534140755,-131.41417716,0.000149,2]
[356989499,1743534170138,168.06,0.00013699,2]
[356989501,1743534184584,-173.84203801,0.00014899,2]
[356989502,1743534188505,-84.15796199,0.00014899,2]
[356989503,1743534188535,-88.77698145,0.00014899,2]
[356989505,1743534197633,463.38614554,0.00034246,120]
[356989509,1743534246656,-61.22301855,0.00014899,2]
[356989510,1743534246681,-88.77698145,0.00014899,2]
[356989516,1743534323839,253.78846639,0.00034246,30]
[356989524,1743534514835,-150.0,0.00014899,2]
[356989525,1743534514864,-150.0,0.000149,2]
[356989526,1743534514893,-1950.66692284,0.000149,2]
[356989527,1743534514921,-6031.9281,0.000149,2]
[356989528,1743534514953,-306.37427454,0.000149,2]
[356989529,1743534514981,-20.97181288,0.000149,2]
[356989530,1743534515014,-979.02818712,0.000149,2]
[356989531,1743534515042,-313.8384,0.000149,2]
[356989532,1743534515076,-1012.9287,0.000149,2]
[356989533,1743534515115,-1000.0,0.000149,2]
[356989534,1743534515157,-5304.14582314,0.000149,2]
[356989535,1743534515203,-949.88801342,0.000149,2]
[356989544,1743534631723,-150.0,0.00014899,2]
[356989545,1743534631733,-150.0,0.000149,2]
[356989546,1743534631743,-1836.35713916,0.000149,2]
[356989547,1743534631778,-13797.78682428,0.000149,2]
[356989548,1743534631790,-2500.0,0.000149,2]
[356989549,1743534631799,-9316.92721411,0.000149,2]
[356989550,1743534631831,-486.90482947,0.000149,2]
[356989551,1743534631939,-1077.95652482,0.000149,2]
[356989552,1743534631948,-254.56347518,0.000149,2]
[356989565,1743534637680,-3774.94179018,0.000149,2]
[356989566,1743534637837,-1661.6399997,0.000149,2]
[356989608,1743534639886,-296.70638937,0.000149,2]
[356989631,1743534640100,-46274.2492577,0.000149,2]
[356989633,1743534640109,-6664.5886,0.000149,2]
[356989635,1743534640119,-1000.0,0.000149,2]
[356989637,1743534640129,-272.22660776,0.000149,2]
[356989639,1743534640139,-257.01796152,0.000149,2]
[356989641,1743534640150,-1000.0,0.000149,2]
[356989643,1743534640160,-509.40380115,0.00014973,2]
[356989646,1743534640170,-500.0,0.00014973,2]
[356989648,1743534640183,-500.0,0.00014973,2]
[356989650,1743534640193,-500.0,0.00014973,2]
[356989652,1743534640202,-18050.65,0.00014999,2]
[356989654,1743534640212,-694.0,0.00015,2]
[356989656,1743534640223,-4582205.42400006,0.00015,2]
[356989695,1743534642940,-2974.05,0.00015,2]
[356989739,1743534724189,279.35102673,0.00034246,30]
[356989740,1743534757878,1582.77,0.00013267,2]
[356989742,1743534898516,2044.27,0.00014371,2]
[356989743,1743534950612,1178.04,0.00014746,2]
[356989744,1743535078237,1936.0,0.000148,2]
[356989745,1743535110488,1232.217,0.000147,2]
[356989746,1743535138240,1000.0,0.000148,2]
[356989747,1743535163336,500.00889234,0.00034209,120]
[356989748,1743535176641,250.0,0.00014744,2]
[356989749,1743535192816,500.0,0.00034209,120]
[356989750,1743535203305,500.0,0.00034209,120]
[356989751,1743535207940,1699.55,0.00014308,2]
[356989752,1743535224411,168.06,0.00013699,2]
[356989753,1743535266888,500.0,0.00034209,120]
[356989754,1743535340127,16050.28,0.00014263,2]
[356989755,1743535406780,184.18,0.00014786,2]
[356989757,1743535493202,-150.0,0.00015139,7]
[356989758,1743535493241,-151.0,0.00024,7]
[356989759,1743535493264,-151.0,0.00024,7]
[356989760,1743535493287,-151.0,0.00024,7]
[356989761,1743535493310,-151.0,0.00024,7]
[356989762,1743535493332,-151.0,0.00024,7]
[356989763,1743535493355,-151.0,0.00024,7]
[356989764,1743535493378,-214.616919,0.00024,7]
[356989765,1743535493400,-151.0,0.00024,7]
[356989766,1743535493424,-151.0,0.00024,7]
[356989767,1743535493450,-151.617424,0.00024,7]
[356989768,1743535493472,-151.0,0.00024,7]
[356989769,1743535493499,-151.0,0.00024,7]